bitfinex-derivatives/quotes_ETHF0:USTF0_20260305
["timestamp","ask_amount","ask_price","bid_price","bid_amount"]
[1772712371893,0.60242999,2131.8,2130.4,0.59964114]
[1772712372095,0.60242999,2131.6,2130.4,0.59964114]
[1772712372791,0.60242999,2131.6,2130.4,0.60536684]
[1772712373200,0.60242999,2131.6,2130.6,0.59964114]
[1772712376310,0.60242999,2132.0,2130.8,0.59964114]
[1772712378004,0.60242999,2131.8,2130.5,0.59964114]
[1772712378602,0.60242999,2131.6,2130.5,0.59964114]
[1772712379997,0.57115899,2131.4,2130.4,0.0057257]
[1772712380197,0.57115899,2131.2,2130.4,0.0057257]
[1772712382009,0.57115899,2131.2,2130.4,0.60151693]
[1772712382508,0.57115899,2131.2,2130.4,0.0057257]
[1772712384202,5.29722108,2131.1,2130.4,0.0057257]
[1772712384406,0.57115899,2131.0,2130.0,0.59579123]
[1772712385410,0.57115899,2131.0,2130.0,0.60104089]
[1772712389411,13.67412915,2131.2,2130.2,0.62843523]
[1772712389412,4.4433918,2131.2,2130.2,0.62843523]
[1772712389714,0.59926265,2131.2,2130.2,0.62843523]
[1772712390114,4.4433918,2131.8,2130.5,0.23467]
[1772712390415,0.59926265,2131.8,2130.8,0.62843523]
[1772712391011,0.59926265,2131.8,2131.0,0.62843523]
[1772712391810,0.59926265,2131.8,2131.2,0.62843523]
[1772712392212,5.59329611,2132.3,2131.2,0.62843523]
[1772712392213,3.84412915,2132.3,2131.3,0.23458]
[1772712392408,0.60357065,2132.4,2131.4,0.62843523]
[1772712397619,0.60357065,2132.4,2131.6,0.62843523]
[1772712397819,0.60357065,2132.4,2131.6,0.63265379]
[1772712399217,0.60357065,2132.4,2131.6,0.00421856]
[1772712399718,0.60357065,2132.4,2131.6,0.63265379]
[1772712406220,0.004308,2132.4,2131.6,0.63265379]
[1772712406724,0.60357065,2132.4,2131.6,0.63265379]
[1772712409224,0.6253157,2132.4,2131.6,0.63265379]
[1772712412024,0.004308,2132.4,2131.6,0.63265379]
[1772712412221,0.004308,2132.4,2131.7,0.62189996]
[1772712412418,0.6210077,2132.8,2131.9,0.62189996]
[1772712412624,0.6210077,2132.8,2132.1,0.62189996]
[1772712413023,1.26775341,2133.1,2132.3,0.62189996]
[1772712413424,1.2725194,2133.1,2132.3,0.62189996]
[1772712413626,1.2725194,2133.1,2132.5,0.62189996]
[1772712414427,1.8935271,2133.1,2132.6,0.62189996]
[1772712414623,0.6210077,2133.5,2132.6,0.62189996]
[1772712415727,0.62654616,2133.5,2132.6,0.62189996]
[1772712416222,0.00553846,2133.5,2132.8,0.57660875]
[1772712418017,0.62654616,2133.5,2132.8,0.57660875]
[1772712418627,0.00553846,2133.5,2132.8,0.57660875]
[1772712420127,0.62654616,2133.5,2132.8,0.57660875]
[1772712421127,0.00553846,2133.5,2132.8,0.57660875]
[1772712423526,9.764,2134.3,2133.4,0.5593131]
[1772712423733,0.6210077,2134.9,2133.8,0.5593131]
[1772712424033,0.6210077,2134.9,2134.2,0.55882649]
[1772712424219,0.6210077,2135.1,2134.2,0.55882649]
[1772712424529,0.00563413,2135.1,2134.4,0.55895452]
[1772712425628,0.00563413,2135.1,2134.2,0.00445286]
[1772712425629,0.6210077,2136.0,2134.6,0.5584206]
[1772712425833,0.6210077,2135.8,2134.6,0.5584206]
[1772712426125,0.6210077,2135.8,2134.7,0.23421]
[1772712426324,0.6210077,2135.8,2134.8,0.55232136]
[1772712426520,0.6210077,2136.1,2134.8,0.55232136]
[1772712426725,0.62456757,2136.1,2134.8,0.55232136]
[1772712427232,0.62456757,2136.1,2135.2,0.55095138]
[1772712428030,0.00355987,2136.1,2135.2,0.55095138]
[1772712428734,1.99077446,2137.2,2135.5,0.53987879]
[1772712428735,0.6210077,2137.1,2135.5,0.53987879]
[1772712429532,0.62487079,2137.1,2135.7,0.53937389]
[1772712429732,0.62487079,2137.1,2135.7,0.54424887]
[1772712431433,0.6210077,2136.9,2135.7,0.00487498]
[1772712431642,0.6210077,2136.7,2135.7,0.00487498]
[1772712431937,0.6210077,2136.7,2135.8,0.54170431]
[1772712432137,0.62487079,2137.1,2136.1,0.54126294]
[1772712432338,0.00386309,2137.1,2136.3,0.54126294]
[1772712432931,0.62487079,2137.1,2136.3,0.54126294]
[1772712433130,0.6210077,2136.9,2136.0,0.53570493]
[1772712433441,0.6210077,2136.9,2135.8,0.53570493]
[1772712433836,0.6210077,2136.9,2135.7,40.80487498]
[1772712434037,0.6210077,2136.9,2135.8,0.53522966]
[1772712437748,0.62487079,2137.1,2136.0,0.54292356]
[1772712437947,0.62487079,2137.1,2136.1,0.54292356]
[1772712438150,0.00386309,2137.1,2136.1,0.54292356]
[1772712438546,0.00386309,2137.1,2136.3,0.54249981]
[1772712439548,0.61887,2137.1,2136.3,0.54249981]
[1772712440049,0.61500691,2137.5,2136.5,0.54221385]
[1772712440356,0.61500691,2137.5,2136.5,0.53795517]
[1772712440654,0.23386,2137.9,2135.8,0.53715159]
[1772712440655,0.61500691,2137.2,2135.8,0.53715159]
[1772712440849,0.61500691,2137.2,2135.9,0.53715159]
[1772712441052,0.62047573,2137.2,2135.9,0.53715159]
[1772712441653,0.61500691,2136.8,2135.9,0.53715159]
[1772712444558,0.61500691,2136.8,2135.9,0.53681426]
[1772712444954,0.61500691,2136.8,2136.0,0.53568324]
[1772712445157,0.61500691,2137.0,2136.2,0.53530723]
[1772712445359,0.62047573,2137.2,2136.4,0.53530723]
[1772712445761,0.62047573,2137.2,2135.9,40.8]
[1772712446162,0.61500691,2137.0,2135.9,40.8]
[1772712447056,0.61500691,2137.0,2136.0,0.53174164]
[1772712448059,0.62047573,2137.2,2136.2,0.53133589]
[1772712448860,0.62047573,2137.2,2136.0,0.53529171]
[1772712449060,0.62047573,2137.2,2136.2,0.53529171]
[1772712449660,0.62047573,2137.2,2136.4,0.53480716]
[1772712449961,0.62047573,2137.2,2136.3,0.23403]
[1772712449962,1.23669876,2137.5,2136.6,0.53480716]
[1772712450168,0.56513924,2137.7,2136.6,0.53480716]
[1772712450865,0.56902242,2137.7,2136.6,0.53480716]
[1772712451258,0.56902242,2137.7,2136.7,0.23399]
[1772712451562,0.56902242,2137.7,2136.8,0.52454067]
[1772712454759,0.56902242,2137.7,2136.2,0.51269266]
[1772712454958,0.56902242,2137.7,2136.4,0.51269266]
[1772712454959,0.56513924,2137.5,2136.4,0.51269266]
[1772712455359,0.56513924,2137.6,2136.6,0.51236496]
[1772712455959,0.56513924,2137.6,2136.8,0.51233375]
[1772712456564,0.56513924,2137.6,2136.6,0.50480363]
[1772712456763,0.56513924,2137.4,2136.3,0.50480363]
[1772712456963,0.56513924,2137.2,2136.3,0.50480363]
[1772712457158,0.56513924,2137.0,2136.3,0.50480363]
[1772712457573,0.56513924,2137.2,2136.3,0.50480363]
[1772712457965,0.56513924,2137.2,2136.5,0.50445615]
[1772712458761,0.56513924,2137.4,2136.5,0.50445615]
[1772712458966,0.56513924,2137.6,2136.5,0.50445615]
[1772712459169,0.56513924,2137.6,2136.7,0.50129664]
[1772712459470,0.56513924,2137.4,2136.3,0.50129664]
[1772712459777,5.33179406,2137.5,2136.3,0.50129664]
[1772712459778,0.56513924,2137.2,2136.3,0.50129664]
[1772712459971,0.56513924,2137.0,2136.3,0.50129664]
[1772712462163,0.56513924,2137.0,2136.1,0.50124996]
[1772712462372,0.56513924,2136.8,2135.9,41.30124996]
[1772712462573,0.56513924,2136.6,2135.9,41.30124996]
[1772712462775,0.56513924,2136.8,2136.0,0.5025064]
[1772712462971,5.90637906,2136.7,2136.0,0.5025064]
[1772712463174,0.56513924,2136.7,2136.0,0.5025064]
[1772712465471,0.56513924,2136.7,2135.9,40.8]
[1772712465667,0.56513924,2136.5,2135.9,40.8]
[1772712467676,0.56513924,2136.5,2135.8,0.49796862]
[1772712467870,5.59329611,2136.9,2135.7,0.00487498]
[1772712467871,0.56513924,2136.3,2135.7,0.00487498]
[1772712468071,0.56513924,2136.3,2135.7,40.80487498]
[1772712469277,0.57744686,2136.6,2135.7,0.50512013]
[1772712469473,0.57744686,2136.8,2135.9,0.50024515]
[1772712469672,5.91758278,2136.7,2135.9,0.50024515]
[1772712469876,0.57744686,2136.7,2135.9,0.50024515]
[1772712470566,0.57744686,2136.5,2135.8,40.8]
[1772712470968,5.34190706,2136.4,2135.7,0.00487498]
[1772712471279,0.57744686,2136.3,2135.7,0.00487498]
[1772712472575,0.57744686,2136.1,2135.5,40.8]
[1772712473482,0.58304073,2136.1,2135.5,40.80548227]
[1772712477379,0.58304073,2136.1,2135.5,41.31745579]
[1772712478478,0.58304073,2136.1,2135.6,0.51168274]
[1772712480281,0.00559387,2136.1,2135.6,0.51168274]
[1772712480487,0.58304073,2136.1,2135.6,0.51168274]
[1772712482188,0.58304073,2136.1,2135.5,41.30636945]
[1772712484389,0.58304073,2136.1,2135.6,0.49964067]
[1772712484585,0.00559387,2136.1,2135.6,0.49964067]
[1772712484789,0.58304073,2136.1,2135.6,0.49964067]
[1772712485583,0.58304073,2136.1,2135.5,40.80548227]
[1772712485584,0.58304073,2136.1,2135.5,0.00548227]
[1772712485787,0.57744686,2135.9,2134.8,0.58678064]
[1772712486292,0.57744686,2135.9,2134.9,41.38678064]
[1772712486891,0.57744686,2135.9,2134.9,41.39252042]
[1772712487488,0.57744686,2135.7,2134.9,40.80573978]
[1772712487693,0.57744686,2135.7,2134.5,0.58678064]
[1772712487694,0.57744686,2135.5,2134.5,0.58678064]
[1772712487895,0.57744686,2135.3,2134.5,0.58678064]
[1772712488095,0.57744686,2135.3,2134.6,40.8]
[1772712488290,0.57744686,2135.3,2134.5,0.58678064]
[1772712488785,0.57744686,2135.3,2134.5,40.80481649]
[1772712488985,0.57744686,2135.1,2134.2,0.58678064]
[1772712489296,0.57744686,2134.9,2133.8,0.58678064]
[1772712489490,0.57744686,2134.9,2134.0,0.58678064]
[1772712489996,0.57744686,2134.9,2134.0,0.59034203]
[1772712491796,0.57744686,2135.4,2134.1,0.58678064]
[1772712492001,4.03075024,2135.5,2134.1,0.58678064]
[1772712492002,0.57744686,2135.2,2134.1,0.58678064]
[1772712492294,0.57744686,2135.2,2134.2,21.253]
[1772712492506,0.57744686,2135.2,2134.3,0.58678064]
[1772712493203,0.57744686,2135.5,2134.5,0.58678064]
[1772712493401,0.57744686,2135.4,2134.5,0.58678064]
[1772712494305,0.57744686,2135.4,2134.3,0.58678064]
[1772712494503,0.57744686,2135.2,2134.1,0.58678064]
[1772712494903,0.57744686,2135.0,2134.1,0.58678064]
[1772712498804,0.5603676,2135.4,2134.3,0.55452161]
[1772712503801,0.5603676,2135.4,2134.5,0.55452161]
[1772712506507,0.5603676,2135.8,2134.5,0.55452161]
[1772712506708,0.5603676,2135.6,2134.5,0.55452161]
[1772712507801,0.5603676,2135.6,2134.7,0.55452161]
[1772712508514,0.5603676,2135.6,2134.8,0.2342]
[1772712508807,0.5603676,2135.6,2135.0,0.58895092]
[1772712509502,0.58485625,2135.8,2135.0,0.58895092]
[1772712510407,0.58485625,2135.8,2134.9,40.8]
[1772712510408,0.58485625,2136.0,2135.2,0.58895092]
[1772712512208,0.00559387,2136.1,2135.2,0.58895092]
[1772712512400,0.00559387,2136.1,2135.3,0.23414]
[1772712512604,0.00559387,2136.1,2135.4,0.58895092]
[1772712512911,0.59045012,2136.1,2135.4,0.58895092]
[1772712513608,3.79663024,2136.6,2135.5,3.77422355]
[1772712513913,0.58485625,2136.9,2135.5,0.58895092]
[1772712514204,0.58485625,2136.7,2135.5,0.58895092]
[1772712514405,0.58485625,2136.7,2135.7,0.58895092]
[1772712514610,0.59078629,2136.7,2135.7,0.59409833]
[1772712516103,0.59078629,2136.7,2135.9,0.58895092]
[1772712519913,0.59078629,2136.7,2136.1,0.58895092]
[1772712520811,0.59078629,2136.7,2135.9,0.58895092]
[1772712521014,0.58485625,2136.5,2135.7,0.00514741]
[1772712522018,0.58485625,2136.3,2135.4,41.38895092]
[1772712522316,0.58485625,2136.3,2135.5,0.58895092]
[1772712523016,0.58485625,2136.3,2135.5,0.59420985]
[1772712524420,0.58485625,2136.3,2135.5,0.00525893]
[1772712526018,0.58485625,2136.3,2135.5,0.59420985]
[1772712528519,0.59078629,2136.7,2135.7,0.58895092]
[1772712528717,0.58485625,2136.5,2135.7,0.58895092]
[1772712529119,0.56136054,2136.7,2135.7,0.58895092]
[1772712529327,0.00593004,2136.7,2135.9,0.60349869]
[1772712531827,0.00593004,2136.7,2136.1,0.60349869]
[1772712532129,0.5554305,2137.3,2136.3,0.60349869]
[1772712532526,0.5554305,2137.3,2136.5,0.60349869]
[1772712533028,0.56002124,2137.3,2136.5,0.60349869]
[1772712537529,0.5554305,2137.1,2136.1,0.60349869]
[1772712538133,0.5554305,2136.9,2136.2,41.40349869]
[1772712538330,0.5554305,2137.1,2136.3,0.60349869]
[1772712541136,0.00459074,2137.3,2136.2,40.8]
[1772712541137,0.56002124,2137.3,2136.5,0.60349869]
[1772712543634,0.56002124,2137.3,2136.2,40.8]
[1772712543940,0.5554305,2137.1,2136.3,0.60349869]
[1772712546435,0.5554305,2136.9,2136.2,40.8]
[1772712546635,0.5554305,2136.9,2136.2,41.40349869]
[1772712546835,0.5554305,2136.9,2136.3,0.60349869]
[1772712547633,0.5554305,2137.2,2136.4,0.60349869]
[1772712548038,0.5554305,2137.2,2136.6,0.60349869]
[1772712548938,0.5554305,2137.2,2135.6,10.51074676]
[1772712548939,0.5554305,2137.0,2136.2,0.60349869]
[1772712549440,0.5554305,2136.8,2136.2,0.60349869]
[1772712549941,0.5554305,2136.8,2136.2,41.40349869]
[1772712551440,0.5554305,2136.8,2136.3,0.60349869]
[1772712552139,0.5554305,2136.8,2136.2,40.8]
[1772712552340,0.5554305,2136.8,2136.2,41.40349869]
[1772712552542,0.5554305,2136.8,2136.3,0.60349869]
[1772712552843,0.7894105,2136.8,2136.0,0.60349869]
[1772712553143,0.5554305,2136.5,2135.6,0.60349869]
[1772712553345,0.5554305,2136.5,2135.7,40.8]
[1772712553545,0.5554305,2136.5,2135.8,0.60349869]
[1772712553847,0.37227844,2136.5,2135.8,0.60349869]
[1772712554746,0.37227844,2136.5,2135.7,38.54109738]
[1772712554944,0.37227844,2136.5,2135.8,0.60349869]
[1772712555641,0.37227844,2136.5,2135.8,41.40349869]
[1772712556247,0.37227844,2136.5,2135.9,0.60349869]
[1772712557647,0.37227844,2136.5,2135.8,40.8]
[1772712558242,0.37227844,2136.5,2135.8,41.40349869]
[1772712558442,0.37227844,2136.5,2135.6,0.60349869]
[1772712558638,0.5554305,2136.4,2135.6,0.60349869]
[1772712559044,0.5554305,2136.4,2135.8,0.60383141]
[1772712559751,0.58270636,2136.6,2135.8,0.60383141]
[1772712560050,5.94582343,2136.5,2135.8,0.60383141]
[1772712560252,5.36311707,2136.4,2135.8,0.60383141]
[1772712561244,0.58270636,2136.5,2135.8,0.60383141]
[1772712562153,0.58270636,2136.3,2135.8,0.60383141]
[1772712565858,0.58270636,2136.5,2135.8,0.60383141]
[1772712566252,0.58270636,2136.7,2136.0,0.60383141]
[1772712566556,5.94810005,2136.6,2136.0,0.60383141]
[1772712566754,0.58270636,2136.6,2136.0,0.60383141]
[1772712568557,0.60944656,2136.7,2136.0,0.60383141]
[1772712570158,0.60944656,2136.8,2136.0,0.60383141]
[1772712571755,0.60944656,2136.9,2136.2,0.57352272]
[1772712571959,0.60944656,2136.7,2135.7,41.0341]
[1772712572259,0.60944656,2136.7,2136.0,0.57352272]
[1772712573460,0.60944656,2136.7,2135.8,0.57352272]
[1772712574161,0.60944656,2136.7,2136.0,0.57352272]
[1772712574360,0.60944656,2136.8,2136.0,0.57352272]
[1772712574560,5.37232231,2136.7,2136.0,0.57352272]
[1772712574962,5.98176887,2136.7,2136.0,0.57352272]
[1772712575163,0.60944656,2136.7,2136.0,0.57352272]
[1772712575763,0.60944656,2136.7,2135.8,0.57352272]
[1772712575964,0.60944656,2136.5,2135.8,0.57352272]
[1772712576265,0.60944656,2136.3,2135.8,0.57352272]
[1772712582864,0.60944656,2136.3,2135.7,41.37352272]
[1772712583067,0.60944656,2136.1,2135.5,0.57878165]
[1772712583570,0.60944656,2136.1,2135.5,41.37878165]
[1772712584367,0.60944656,2136.1,2135.6,0.57352272]
[1772712585071,0.13240801,2136.2,2135.6,0.57352272]
[1772712590078,0.61517881,2136.4,2135.6,0.57352272]
[1772712590268,0.61517881,2136.2,2135.6,0.57352272]
[1772712590474,0.61517881,2136.4,2135.6,0.57352272]
[1772712590680,5.38338427,2136.3,2135.6,0.57352272]
[1772712590973,5.38338427,2136.3,2135.7,0.2341]
[1772712591190,0.61517881,2136.6,2135.9,0.60064739]
[1772712592478,0.61517881,2136.8,2135.9,0.60064739]
[1772712593675,4.51294046,2136.8,2135.9,0.60064739]
[1772712593879,0.61517881,2136.7,2135.9,0.60064739]
[1772712596176,0.61517881,2136.7,2135.8,22.38664739]
[1772712596370,0.61517881,2136.7,2135.9,0.60064739]
[1772712602389,0.61517881,2136.2,2135.5,40.80525893]
[1772712602583,0.61517881,2136.2,2135.3,0.60064739]
[1772712602584,0.61517881,2136.2,2135.1,0.60064739]
[1772712602585,0.61517881,2135.9,2135.1,0.60064739]
[1772712602885,0.61517881,2135.8,2134.7,0.60064739]
[1772712603092,0.61517881,2135.6,2134.7,0.60064739]
[1772712603287,0.61517881,2135.4,2134.7,0.60064739]
[1772712603490,0.61517881,2135.2,2134.7,0.00381579]
[1772712603687,0.61517881,2135.2,2134.7,0.60446318]
[1772712603886,0.61517881,2135.2,2134.7,0.00381579]
[1772712604288,0.61517881,2135.2,2134.7,0.60446318]
[1772712604987,0.61517881,2135.2,2134.7,0.00381579]
[1772712605692,9.492,2135.1,2134.0,0.60064739]
[1772712605996,0.61517881,2134.9,2134.0,0.60064739]
[1772712606182,0.61517881,2134.9,2134.2,0.60064739]
[1772712606686,0.61517881,2134.9,2134.2,0.60458518]
[1772712608387,0.23819367,2135.4,2134.2,0.60458518]
[1772712608388,0.61517881,2135.3,2134.2,0.60458518]
[1772712608589,0.61517881,2135.3,2134.4,0.60064739]
[1772712609494,0.61517881,2135.3,2134.3,21.96]
[1772712609692,0.61517881,2135.3,2134.4,0.60064739]
[1772712611487,0.61517881,2135.3,2134.6,0.60064739]
[1772712613702,0.61517881,2135.3,2134.4,22.60964739]
[1772712614090,0.61517881,2135.3,2134.3,0.60064739]
[1772712622905,0.61517881,2135.3,2134.4,0.58946911]
[1772712623102,0.00406367,2135.4,2134.7,0.23421]
[1772712623300,0.00406367,2135.4,2134.8,0.58946911]
[1772712624108,0.62320203,2135.7,2135.0,0.58946911]
[1772712625003,0.62710857,2135.7,2135.0,0.58946911]
[1772712630411,0.62710857,2135.7,2134.4,22.092]
[1772712630412,0.62710857,2135.7,2134.5,0.60451764]
[1772712630709,0.58094911,2135.6,2134.5,0.60451764]
[1772712631107,0.58094911,2135.4,2134.5,0.60451764]
[1772712631409,0.58094911,2135.2,2134.5,0.60451764]
[1772712632811,0.58094911,2135.3,2134.5,0.60451764]
[1772712633011,5.39843039,2135.2,2134.5,0.60451764]
[1772712633208,5.9793795,2135.2,2134.5,0.60451764]
[1772712633408,0.58094911,2135.2,2134.5,0.60451764]
[1772712633805,0.58094911,2135.0,2134.2,0.60845543]
[1772712634209,0.58094911,2134.8,2134.2,0.60845543]
[1772712635113,0.58094911,2134.6,2134.2,0.60845543]
[1772712635511,0.58094911,2134.6,2134.2,0.00393779]
[1772712636015,0.58094911,2134.6,2134.2,0.60845543]
[1772712638016,0.58094911,2134.6,2134.0,0.60451764]
[1772712639010,0.58094911,2134.6,2134.1,40.8]
[1772712639216,0.58094911,2134.6,2134.1,41.40849878]
[1772712639820,0.58094911,2134.9,2134.2,0.60451764]
[1772712640014,5.39149045,2134.8,2134.2,0.60451764]
[1772712641415,4.45091106,2135.3,2134.3,0.60451764]
[1772712641620,5.38878087,2135.2,2134.5,0.60451764]
[1772712642812,0.58094911,2135.1,2134.5,0.60451764]
[1772712643014,0.58094911,2135.1,2134.4,0.23424]
[1772712643216,0.58094911,2135.1,2134.5,0.60451764]
[1772712649926,0.58094911,2135.1,2134.2,22.119]
[1772712650120,0.58094911,2135.1,2134.3,0.579292]
[1772712651914,0.58094911,2135.1,2134.5,0.579292]
[1772712653318,0.58094911,2135.1,2134.4,0.23424]
[1772712653521,0.58094911,2135.1,2134.4,0.813532]
[1772712654722,0.58094911,2135.1,2134.4,0.579292]
[1772712658129,0.6126192,2134.9,2134.4,0.579292]
[1772712661330,5.59329611,2135.3,2134.4,0.579292]
[1772712661331,0.6126192,2135.1,2134.4,0.579292]
[1772712661532,0.6126192,2135.1,2134.2,22.35325]
[1772712661533,0.6126192,2134.9,2134.3,0.579292]
[1772712661935,0.6126192,2134.7,2134.3,0.579292]
[1772712662632,0.6126192,2134.7,2134.1,41.38327314]
[1772712662931,0.6126192,2134.5,2134.1,41.38327314]
[1772712663931,0.6126192,2134.3,2133.7,0.579292]
[1772712664439,0.6126192,2134.3,2133.5,41.379292]
[1772712664741,0.6126192,2134.1,2133.2,0.579292]
[1772712664931,0.6126192,2133.9,2133.2,0.00497771]
[1772712665134,0.6126192,2133.7,2133.2,0.00497771]
[1772712665337,0.6126192,2133.7,2132.4,0.579292]
[1772712665537,0.6126192,2133.5,2132.4,0.579292]
[1772712665742,0.6126192,2133.5,2132.5,0.579292]
[1772712665940,0.6126192,2133.5,2132.7,0.579292]
[1772712666241,0.6126192,2133.5,2132.7,0.58322394]
[1772712666636,0.6126192,2133.3,2132.7,0.58322394]
[1772712666846,0.6126192,2133.7,2132.7,0.58322394]
[1772712668443,0.6126192,2133.7,2132.9,0.579292]
[1772712669235,0.6126192,2134.0,2132.9,0.579292]
[1772712669842,0.6126192,2134.0,2133.1,0.579292]
[1772712670034,0.00507239,2134.1,2133.3,0.579292]
[1772712670744,0.61769159,2134.1,2133.3,0.579292]
[1772712675244,0.61769159,2134.1,2133.4,0.23435]
[1772712675439,0.6126192,2134.5,2133.7,0.579292]
[1772712675948,0.6126192,2134.5,2133.9,0.579292]
[1772712676446,0.616768,2134.5,2133.9,0.579292]
[1772712677544,0.0041488,2134.5,2133.9,0.579292]
[1772712677744,0.6126192,2134.7,2134.1,0.579292]
[1772712678344,0.6126192,2134.9,2134.3,0.579292]
[1772712678738,0.0035841,2134.9,2134.3,0.58332058]
[1772712681546,0.60159483,2135.2,2134.5,0.6181659]
[1772712682653,0.60630684,2135.2,2134.5,0.6181659]
[1772712683753,0.60630684,2135.2,2134.4,41.4181659]
[1772712683956,0.60630684,2135.2,2134.5,0.6181659]
[1772712685255,0.60630684,2135.2,2134.3,0.62219448]
[1772712685752,0.60630684,2135.2,2134.4,0.6181659]
[1772712689455,0.60630684,2135.2,2134.3,40.80402858]
[1772712689661,0.60630684,2135.2,2134.3,0.00402858]
[1772712689861,0.62454055,2135.0,2134.3,0.00402858]
[1772712691651,0.62454055,2135.0,2133.9,23.00563765]
[1772712691856,0.62454055,2135.0,2133.8,0.23431]
[1772712692065,0.62454055,2134.8,2133.6,0.57463765]
[1772712692754,0.62454055,2134.8,2133.9,0.57463765]
[1772712694156,0.62454055,2135.4,2134.5,0.23423]
[1772712694356,0.62454055,2135.4,2134.6,0.57463765]
[1772712694760,0.62454055,2135.4,2134.2,0.57463765]
[1772712694963,0.62454055,2135.2,2134.2,0.57463765]
[1772712695264,0.63037201,2135.2,2134.2,0.57463765]
[1772712696261,0.62454055,2135.0,2134.2,0.57463765]
[1772712698663,0.62454055,2135.0,2134.0,0.80891765]
[1772712698868,0.62454055,2135.0,2134.1,0.57463765]
[1772712699269,0.62454055,2134.8,2134.1,0.57463765]
[1772712702165,0.62454055,2135.0,2134.1,0.57463765]
[1772712703167,0.62454055,2135.0,2134.3,0.57463765]
[1772712703569,0.62454055,2135.1,2134.3,0.57463765]
[1772712703969,0.00583146,2135.2,2134.3,0.57463765]
[1772712704271,0.62454055,2135.1,2134.3,0.57463765]
[1772712704472,0.62454055,2135.6,2134.5,0.57463765]
[1772712704671,5.41146328,2135.5,2134.5,0.57463765]
[1772712704872,0.62454055,2135.4,2134.5,0.57463765]
[1772712705072,0.62454055,2135.4,2134.7,0.57463765]
[1772712705267,0.62454055,2135.6,2134.7,0.57463765]
[1772712705473,5.4130629,2135.5,2134.7,0.57463765]
[1772712705769,0.00557337,2135.6,2134.9,0.57463765]
[1772712705966,0.62454055,2135.9,2134.9,0.57463765]
[1772712706968,0.6298061,2135.9,2134.9,0.57463765]
[1772712707169,0.00526555,2135.9,2134.9,6.33569765]
[1772712707380,5.55e-06,2135.9,2135.3,0.57463765]
[1772712708279,0.6245461,2135.9,2135.5,0.57463765]
[1772712708567,5.55e-06,2135.9,2135.5,0.57934693]
[1772712711072,5.55e-06,2135.9,2135.7,0.38947403]
[1772712711478,0.59467413,2136.5,2135.7,0.38947403]
[1772712712073,0.59467413,2136.5,2135.9,0.3894632]
[1772712712376,0.59896384,2136.5,2135.9,0.3894632]
[1772712713270,0.59896384,2136.5,2135.8,41.19273293]
[1772712713471,0.59896384,2136.5,2135.9,0.39273293]
[1772712714280,0.59467413,2136.7,2135.9,0.39273293]
[1772712715171,0.60063607,2136.7,2135.9,0.39273293]
[1772712715372,0.60063607,2136.7,2135.8,40.8]
[1772712716780,0.60063607,2136.7,2135.6,23.14668668]
[1772712717284,0.60063607,2136.7,2135.7,41.20443681]
[1772712718974,0.60063607,2136.7,2135.8,0.40752248]
[1772712719176,0.60063607,2136.7,2136.0,0.40767981]
[1772712720373,0.00596194,2136.7,2136.0,0.40767981]
[1772712720979,0.60063607,2136.7,2136.0,0.40767981]
[1772712721172,0.60063607,2136.7,2135.9,0.64621344]
[1772712721372,0.60063607,2136.7,2135.7,40.8]
[1772712721982,0.59467413,2136.5,2135.5,0.00470928]
[1772712724686,0.59467413,2136.3,2135.5,0.00470928]
[1772712724884,0.59467413,2136.1,2134.9,0.64897632]
[1772712725076,0.59467413,2136.1,2135.0,0.41479632]
[1772712725384,0.59467413,2136.1,2135.1,40.8]
[1772712725681,0.59467413,2136.1,2135.1,41.21493985]
[1772712725877,0.59467413,2136.1,2135.1,40.80603587]
[1772712726673,0.59467413,2135.9,2135.1,40.80603587]
[1772712726880,0.59467413,2135.9,2135.1,0.00603587]
[1772712732185,0.59467413,2135.7,2135.1,0.00603587]
[1772712733283,0.59467413,2135.7,2135.1,0.44365254]
[1772712734579,0.59467413,2136.1,2135.1,0.44365254]
[1772712734779,5.86566064,2136.0,2135.3,0.44446469]
[1772712734979,0.59467413,2136.0,2135.4,0.44446469]
[1772712736091,0.23996194,2136.7,2135.8,0.44473952]
[1772712736092,3.87042942,2136.7,2135.8,0.44473952]
[1772712736282,0.59467413,2137.3,2136.2,0.44473952]
[1772712736583,0.59467413,2137.1,2136.2,0.44473952]
[1772712736784,0.59467413,2136.9,2136.2,0.44473952]
[1772712737484,0.00378702,2136.9,2136.2,0.44473952]
[1772712737678,0.59846115,2136.9,2136.2,0.44473952]
[1772712737884,0.59846115,2136.9,2135.7,0.58495217]
[1772712740880,0.62039381,2136.7,2135.7,0.58495217]
[1772712743890,0.62039381,2136.7,2135.9,0.61342956]
[1772712744880,0.62039381,2136.6,2135.9,0.61342956]
[1772712745282,0.62039381,2136.8,2135.9,0.61342956]
[1772712745890,0.62039381,2136.8,2136.1,0.61342956]
[1772712746294,6.79677433,2136.7,2136.1,0.61342956]
[1772712746484,0.62039381,2136.7,2136.1,0.61342956]
[1772712746689,0.62418083,2136.9,2136.1,0.61342956]
[1772712746888,6.80056135,2136.9,2136.1,0.61342956]
[1772712747291,0.00378702,2136.9,2136.3,0.61342956]
[1772712748193,0.62039381,2137.2,2136.5,0.6427238]
[1772712748694,6.77098589,2137.1,2136.5,0.6427238]
[1772712748896,0.59460537,2137.0,2136.5,0.6427238]
[1772712749289,0.59931986,2137.0,2136.5,0.6427238]
[1772712749489,6.77098589,2136.9,2136.5,0.6427238]
[1772712749796,0.59931986,2137.0,2136.5,0.6427238]
[1772712750289,0.59931986,2137.0,2136.4,40.8]
[1772712750481,0.59931986,2137.0,2135.9,0.6427238]
[1772712750887,0.59931986,2137.0,2135.9,41.4427238]
[1772712751084,0.59931986,2137.0,2135.9,40.8]
[1772712751486,0.59460537,2136.8,2135.9,40.8]
[1772712751692,0.59460537,2136.6,2135.9,40.8]
[1772712751893,0.59460537,2136.4,2135.3,0.6427238]
[1772712752297,0.59460537,2136.4,2135.3,41.4427238]
[1772712752492,0.59460537,2136.4,2135.4,0.6427238]
[1772712753196,0.59460537,2136.4,2135.6,0.6427238]
[1772712754794,0.59460537,2136.4,2135.5,0.8768438]
[1772712755295,0.59460537,2136.4,2135.5,0.23412]
[1772712755484,0.59460537,2136.4,2135.5,0.8768438]
[1772712755795,0.59460537,2136.4,2135.3,40.8]
[1772712755996,0.59460537,2136.4,2135.3,41.4427238]
[1772712756192,0.59460537,2136.4,2135.4,0.6427238]
[1772712756997,0.59460537,2136.4,2135.3,40.8]
[1772712757692,0.59460537,2136.0,2135.1,0.00603587]
[1772712757894,0.59460537,2135.8,2134.8,0.6427238]
[1772712758091,0.59460537,2135.8,2134.9,40.8]
[1772712758398,0.59460537,2135.8,2134.6,0.6427238]
[1772712758793,0.59460537,2135.8,2134.7,41.4427238]
[1772712758995,0.59460537,2135.8,2134.8,0.6427238]
[1772712759497,0.59460537,2135.8,2134.7,40.80462745]
[1772712759696,0.59460537,2135.6,2134.7,41.44735125]
[1772712759993,0.59460537,2135.6,2134.7,0.64735125]
[1772712760294,0.59460537,2135.6,2134.9,0.6427238]
[1772712761191,0.59460537,2135.8,2134.9,0.6427238]